Cogmind - Beta 14 @@@ ROGUE MODE // 2024.10.12 @ 04:54:04 Player: Delilah Keen Result: Self-destructed Performance ------------- Evolutions (1) 500 Regions Visited (3) 600 Robots Destroyed (16) 80 Value Destroyed (285) 285 Prototype IDs (2) 40 Alien Tech Used (0) 0 Bonus (75) 75 TOTAL SCORE: 1580 Bonus ------- Follower Combat Kills 75 Cogmind --------- Core Integrity 332/400 Matter 287/300 Energy 160/160 System Corruption 0% Temperature Cool (0) Movement Walking (190) Ox1 Location -9/Materials Parts ------- > --- POWER (1) -------- Light Nuclear Core > --- PROPULSION (2) --- Aluminum Leg > --- UTILITY (4) ------ Small Storage Unit Sensor Array > --- WEAPON (2) ------- Particle Gun Autogun > --- INVENTORY (8) ---- Light Ion Engine Light Nuclear Core Light Treads Light Treads Aluminum Leg Aluminum Leg Medium Laser Autogun Peak State ------------ > --- POWER ------------ Light Nuclear Core > --- PROPULSION ------- Aluminum Leg Aluminum Leg > --- UTILITY ---------- Small Storage Unit Sensor Array > --- WEAPON ----------- Particle Gun Autogun > --- INVENTORY -------- Light Ion Engine Light Nuclear Core Light Treads Light Treads Aluminum Leg Aluminum Leg Medium Laser Assault Rifle [Rating: 12] Favorites ----------- Power Ion Engine Engine Ion Engine Power Core Light Nuclear Core Propulsion Aluminum Leg Leg Aluminum Leg Utility Small Storage Unit Device Structural Scanner Storage Small Storage Unit Weapon Assault Rifle Energy Gun Medium Laser Ballistic Gun Assault Rifle Build | -11 -10 -10 -9 ------- Run | Yrd Mat Min Mat Slots Evolved 2 | . . . 2 Power . | . . . . Propulsion . | . . . . Utility 2 | . . . 2 Weapon . | . . . . Parts Attached 20 | 6 13 . 1 Power 4 | 1 3 . . Engine 3 | 1 2 . . Core 1 | . 1 . . Reactor . | . . . . Propulsion 6 | 2 4 . . Treads . | . . . . Leg 6 | 2 4 . . Wheel . | . . . . Hover . | . . . . Flight . | . . . . Utility 4 | 1 3 . . Device 3 | . 3 . . Storage 1 | 1 . . . Processor . | . . . . Hackware . | . . . . Protection . | . . . . Artifact . | . . . . Weapon 6 | 2 3 . 1 Energy Gun 2 | 1 1 . . Energy Cannon . | . . . . Ballistic Gun 4 | 1 2 . 1 Ballistic Cannon . | . . . . Launcher . | . . . . Special Weapon . | . . . . Impact Weapon . | . . . . Slashing Weapon . | . . . . Piercing Weapon . | . . . . Special Melee Weapon . | . . . . Unidentified Prototypes . | . . . . Parts Lost 3 | . 2 . 1 Power 1 | . 1 . . Propulsion 2 | . 1 . 1 Utility . | . . . . Weapon . | . . . . Highest Loss Streak 1 | . 1 . 1 To Critical Strikes . | . . . . Average Slot Usage (%) 96 | . 99 100 76 Engine 7 | . 11 . . Core 5 | . 2 14 11 Leg 27 | . 28 28 21 Device 13 | . 13 14 11 Storage 13 | . 14 14 11 Energy Gun 13 | . 13 14 11 Ballistic Gun 13 | . 13 14 11 Peak Build Rating 12 | 6 11 11 12 Average Rating 8 | 4 7 11 11 On Entrance 7 | . 6 11 11 Naked Turns . | . . . . Heaviest Build 17 | 11 16 16 17 Greatest Support 20 | 20 20 20 20 Greatest Overweight (x) 1 | . . . 1 Average Overweight (x) . | . . . . Largest Inventory Capacity 8 | 8 8 8 8 Average Capacity 7 | 6 8 8 8 Most Carried 8 | 4 8 8 8 Average Carried 6 | 1 5 8 8 Final Capacity 8 | 8 8 8 8 Final Carried 8 | 4 8 8 8 Class Distribution -------------------- 60% | Mutant 39% | Scavenger-Mutant Dominant Class ---------------- Mutant | -10/Materials Scavenger-Mutant | -10/Mines Scavenger-Mutant | -9/Materials Resources | -11 -10 -10 -9 ----------- Run | Yrd Mat Min Mat Matter Collected 436 | . 436 . . Remotely . | . . . . Salvage Created 406 | . 406 . . Parts 31 | . 31 . . Haulers Intercepted 2 | . 2 . . Recyclers Shooed 1 | . 1 . . Parts Field Recycled . | . . . . Retrieved Matter . | . . . . Parts Self-Destructed . | . . . . Prevented . | . . . . Kills | -11 -10 -10 -9 ------- Run | Yrd Mat Min Mat Combat Hostiles Destroyed 10 | . 10 . . Guns 10 | . 10 . . Classes Destroyed 6 | . 6 . . Worker 1 | . 1 . . Hauler 2 | . 2 . . Operator 1 | . 1 . . Watcher 2 | . 2 . . Swarmer 6 | . 6 . . Grunt 4 | . 4 . . Best Kill Streak 3 | . 3 . . Combat Bots Only 3 | . 3 . . Max Kills in Single Turn 2 | . 2 . . Gunslinging . | . . . . Exploded . | . . . . Melee . | . . . . Uniques/NPCs Destroyed . | . . . . Combat | -11 -10 -10 -9 -------- Run | Yrd Mat Min Mat Hostile Shots Fired 118 | . 65 18 35 Missed 42 | . 23 7 12 Damage Taken 856 | . 474 106 276 Core 178 | . 110 . 68 Absorbed by Shields . | . . . . Core Remaining (%) 78 | 100 . 56 . Volleys Fired 77 | . 75 . 2 Largest 2 | . 2 . 2 Hottest 88 | . 85 . 88 Shots Fired 133 | . 129 . 4 Gun 133 | . 129 . 4 Cannon . | . . . . Launcher . | . . . . Special . | . . . . Kinetic 56 | . 54 . 2 Thermal 77 | . 75 . 2 Explosive . | . . . . Electromagnetic . | . . . . Robot Hit Streak 7 | . 7 . 4 Robot Miss Streak 5 | . 5 . 1 Penetration Max . | . . . . Secondary Targets . | . . . . Shots Hit Robots 72 | . 69 . 3 Core Hits 27 | . 25 1 1 Critical Kills . | . . . . Critical Parts Destroyed . | . . . . Critical Strikes 6 | . 6 . . Burn 6 | . 6 . . Melee Attacks . | . . . . Impact . | . . . . Slashing . | . . . . Piercing . | . . . . Sneak Attacks . | . . . . Combat Hostiles . | . . . . Follow-up Attacks . | . . . . Damage Inflicted 976 | . 912 9 55 Guns 964 | . 909 . 55 Cannons . | . . . . Explosions . | . . . . Melee . | . . . . Ramming 12 | . 3 9 . Kinetic 398 | . 372 . 26 Thermal 566 | . 537 . 29 Explosive . | . . . . Electromagnetic . | . . . . Impact . | . . . . Slashing . | . . . . Piercing . | . . . . Highest Corruption . | . . . . Average Corruption . | . . . . Corruption Purged . | . . . . Corruption Blocked . | . . . . Overload Shots . | . . . . Overflow Damage . | . . . . Projectiles . | . . . . Explosions . | . . . . Melee . | . . . . Knockbacks . | . . . . Impact . | . . . . Kinetic . | . . . . Secondary . | . . . . Self-Inflicted Damage . | . . . . Shots . | . . . . Rammed . | . . . . Targets Rammed 3 | . 1 2 . Kicked 3 | . 1 2 . Crushed . | . . . . Highest Temperature 261 | . 261 11 95 Average Temperature 40 | . 40 11 50 Received Heat Transfer 297 | . 102 42 153 Siege Activations . | . . . . Robots Corrupted . | . . . . Combat Hostiles . | . . . . Parts Fried . | . . . . Impact Corruptions . | . . . . Robots Melted . | . . . . Combat Hostiles . | . . . . Parts Melted 1 | . 1 . . Heat Transferred 2072 | . 1998 . 74 Parts Sabotaged . | . . . . Parts Stolen . | . . . . Parts Stripped . | . . . . Power Chain Reactions . | . . . . Alert | -11 -10 -10 -9 ------- Run | Yrd Mat Min Mat Peak Influence 177 | . 177 89 50 Initial 36 | . . 36 28 Average 44 | . 49 39 36 Maximum Alert Level . | . . . . Low Security (%) 100 | 100 100 100 100 Level 1 . | . . . . Level 2 . | . . . . Level 3 . | . . . . Level 4 . | . . . . Level 5 . | . . . . High Security . | . . . . Max Security . | . . . . Squads Dispatched 3 | . 1 1 1 Investigation 2 | . 1 . 1 Extermination . | . . . . Reinforcement . | . . . . Assault 1 | . . 1 . Garrison . | . . . . Intercept . | . . . . Searches Triggered . | . . . . Construction Impeded . | . . . . Haulers Reinforced . | . . . . Active Scanning Responses . | . . . . Cargo Convoy Interrupts . | . . . . Stealth | -11 -10 -10 -9 --------- Run | Yrd Mat Min Mat Distress Signals 2 | . 1 . 1 Communications Jammed . | . . . . Distress Signals . | . . . . Times Spotted 41 | . 24 7 10 Peak Tracking Total 10 | . 3 6 10 Tactical Retreats 5 | . 3 1 1 Traps | -11 -10 -10 -9 ------- Run | Yrd Mat Min Mat Traps Triggered 1 | . 1 . . Indirectly . | . . . . Trap Hack Attempts . | . . . . Triggered . | . . . . Disarmed . | . . . . Reprogrammed . | . . . . Reused . | . . . . Traps Extracted . | . . . . Installed . | . . . . Triggered . | . . . . Machines | -11 -10 -10 -9 ---------- Run | Yrd Mat Min Mat Machines Disabled 1 | . 1 . . Max in Single Turn 1 | . 1 . . Machines Repaired . | . . . . Machines Dismantled . | . . . . Machines Sabotaged . | . . . . Overloaded Fab Kills . | . . . . Hacking | -11 -10 -10 -9 --------- Run | Yrd Mat Min Mat Machines Accessed 8 | . 6 . 2 Terminals 6 | . 4 . 2 Fabricators . | . . . . Repair Stations . | . . . . Recycling Units 2 | . 2 . . Scanalyzers . | . . . . Garrison Access . | . . . . Total Hacks 28 | . 23 . 5 Successful 15 | . 12 . 3 Failed 13 | . 11 . 2 Catastrophic 2 | . 1 . 1 Database Lockouts . | . . . . Manual 1 | . . . 1 Terminals 16 | . 11 . 5 Fabricators . | . . . . Repair Stations . | . . . . Recycling Units 12 | . 12 . . Scanalyzers . | . . . . Garrison Access . | . . . . Terminal Hacks 6 | . 3 . 3 Prototype ID Bank 1 | . 1 . . Branch Access Points 1 | . 1 . . Alert Level 2 | . 1 . 1 Locate Traps 1 | . . . 1 Registered Components 1 | . . . 1 Fabricator Hacks . | . . . . Repair Station Hacks . | . . . . Recycling Unit Hacks 9 | . 9 . . Recycle Component 2 | . 2 . . Process 3 | . 3 . . Report Inventory 2 | . 2 . . Retrieve Matter 2 | . 2 . . Scanalyzer . | . . . . Garrison Access Hacks . | . . . . Unauthorized Hacks . | . . . . Terminals . | . . . . Fabricators . | . . . . Repair Stations . | . . . . Recycling Units . | . . . . Scanalyzers . | . . . . Garrison Access . | . . . . Data Cores Recovered . | . . . . Used . | . . . . Hacking Detections 6 | . 4 . 2 Full Trace Events 3 | . 2 . 1 Feedback Events . | . . . . Feedback Blocked . | . . . . Robot Schematics Acquired . | . . . . Robots Built . | . . . . Authchips . | . . . . Time . | . . . . Total Robot Build Rating . | . . . . Part Schematics Acquired . | . . . . Parts Built . | . . . . Authchips . | . . . . Time . | . . . . Total Part Build Rating . | . . . . Parts Repaired . | . . . . Time . | . . . . Parts Recycled 2 | . 2 . . Recycled Matter 223 | . 223 . . Retrieved Matter 175 | . 175 . . Retrieved Components . | . . . . Parts Scanalyzed . | . . . . Part Schematics Acquired . | . . . . Parts Damaged . | . . . . Bothacking | -11 -10 -10 -9 ------------ Run | Yrd Mat Min Mat Used RIF Installer . | . . . . Robots Hacked . | . . . . Non-combat . | . . . . Combat . | . . . . Robot Hacks Applied . | . . . . Relay Couplers Released . | . . . . Fabnet Peak Effective % . | . . . . Robots Rewired . | . . . . Allies Hacked . | . . . . Hacks Repelled . | . . . . Allies | -11 -10 -10 -9 -------- Run | Yrd Mat Min Mat Total Allies 4 | . . 4 . Largest Group 4 | . . 4 . Highest-Rated Group 71 | . . 71 . Highest-Rated Ally 31 | . . 31 . Total Orders . | . . . . Ally Attacks 17 | . . 17 . Total Damage 269 | . . 269 . Kills 3 | . . 3 . Allies Corrupted . | . . . . Allies Melted . | . . . . Intel | -11 -10 -10 -9 ------- Run | Yrd Mat Min Mat Robot Analysis Total . | . . . . Derelict Logs Recovered 2 | . . 2 . Drone Launches . | . . . . Drone Recoveries . | . . . . Exploration | -11 -10 -10 -9 ------------- Run | Yrd Mat Min Mat Turns Passed 2544 | 84 1735 369 356 Spaces Moved 1607 | 65 987 306 249 Core 9 | 9 . . . Treads . | . . . . Legs 1598 | 56 987 306 249 Wheels . | . . . . Hover . | . . . . Flight . | . . . . Fastest Speed 50 | 50 120 120 120 Average Speed 119 | 110 120 120 121 Slowest Speed 190 | 120 120 120 190 Overloaded Moves . | . . . . Propulsion Burnouts . | . . . . Robots Hopped . | . . . . Cave-ins Triggered . | . . . . Exploration Rate (%) 31 | 4 64 42 14 Regions Visited 3 Branch Regions 1 Pre-discovered Areas . | . . . . Known Exits Taken 1 | . 1 . . Unknown Exits Taken 2 | 1 . 1 . Scrap Searched 1 | . . 1 . Spaces Dug . | . . . . Terrain Destroyed . | . . . . Melee . | . . . . Projectile . | . . . . AOE . | . . . . Terrain Rammed . | . . . . Walls Destroyed . | . . . . Machines Disabled . | . . . . Actions | -11 -10 -10 -9 --------- Run | Yrd Mat Min Mat Total 2095 | 74 1413 307 301 Wait 367 | . 321 . 46 Move 1604 | 64 986 305 249 Hop . | . . . . Pick Up 11 | 4 6 . 1 Fast Attach 12 | 6 6 . . Attach 4 | . 4 . . Detach 5 | . 5 . . Swap 4 | . 3 . 1 Drop 8 | . 6 . 2 Fire 77 | . 75 . 2 Melee . | . . . . Ram . | . . . . Kick 3 | . 1 2 . Crush . | . . . . Escape Stasis . | . . . . Rewire . | . . . . Trap . | . . . . Miscellaneous . | . . . . Route ------- -11/Scrapyard -10/Materials (discovered 3 exits: *Mat / *Min x2) -10/Mines -9/Materials History --------- Turn | Location | Event 22 | -11/Scrapyard | Discovered new exit (range 16) 85 | -11/Scrapyard | Entered Materials 311 | -10/Materials | Build established: Mutant 603 | -10/Materials | Identified exit to Mines 1700 | -10/Materials | Discovered new exit (range 15) 1820 | -10/Materials | Entered Mines 1842 | -10/Mines | Build established: Scavenger-Mutant 1886 | -10/Mines | Assisted by bots powering up and referring to "LRC-V3" 1951 | -10/Mines | Learned Materials garrison access intel 1951 | -10/Mines | Discovered new exit (range 8) 2076 | -10/Mines | Met a Derelict testing a Signal Generator 2173 | -10/Mines | Lost 3 allies 2189 | -10/Mines | Entered Materials 2189 | -9/Materials | Evolved 2 slots: Utility x2 2545 | -9/Materials | Self-destructed Last Messages --------------- 02198_ Connecting with Terminal... 02198_ Current location identified: Materials >>Alert(Check) Current Alert Level: Low Security >>Inventory(Components) Retrieving component inventory records... Found 1 registered component stockpile: HA31G4T8J9: Sml. Storage Unit Downloaded coordinate data. >>Traps(Locate) Found 3 traps in 1 array: 3x Shock Trap Map updated. 02219_ Dropped Assault Rifle. 02268_ Acquired Autogun. 02353_ Connecting with Terminal... 02353_ ALERT: Suspicious activity at Terminal M006. Dispatching Investigation squad. 02536_ Aluminum Leg destroyed. 02538_ W-16 Scout sends out distress signal. Map ----- +----------------------------------------------------+ | ?????????????????????????????????????? | | ?????????????????????????????????????? | | ?????????????????????????????????????? | | ?????????????????????????????????????? | | ?????????????????????????????????????? | | ?????????????????????????????????????? | | ?????????????????????????????????????? | | ?????????????????????????????????????? | | ?????????????????????????????????????? | | ?????????????????????????????????????? | | ?????????????????????????????????????? | | ?????????????????????????????????????? | | ?????????????????????????????????????? | | ?????????????????????????????????????? | | ?????????????????????????????????????? | | ?????????????????????????????????????? | | ??????????????????????#??????????????? | | ????????????????????? #??????????????? | | ????????????!???????? #??????????????? | | ???????????????????? #??????????????? | | ???????????????????? ##+#???????????? | | ????????############ ######??????? | | ????????# # ^ ??????? | | ????????# # ^ ??????? | | ????????#""" # ^ ??????????? | | ????????#""" @ + #####+######??????? | | ????????#""" # ## #??????? | | ????????# # ## #??????? | | ????????######## ## """ """ #??????? | | ???????????????# ## """ """ #??????? | | ???????????????# ## """ """ #??????? | | ???????????????# ## #??????? | | ???????????????# ## "T" #??????? | | ???????????????# ## """ #??????? | | ???????????????# ######+#####??????? | | ??????????????## ##???# #??????????? | | ???????######## ##### ##?????????? | | ???????# #?????????? | | ???????# T #?????????? | | ???????# #?????????? | | ?????######+### ########?????????? | | ?????# ###+#######????????????? | | ?????# """"" # #????????????? | | ?????# """"" # """" #????????????? | | ?????# """"" # """" #????????????? | | ?????# # """" #????????????? | | ?????# """"" # #????????????? | | ?????# """"" # #????????????? | | ?????# """"" # #????????????? | | ?????# [# #????????????? | +----------------------------------------------------+ Best States ------------- Heat Dissipation 28 Energy Generation 14 Energy Capacity 250 Matter Stores 300 Matter Capacity 300 Sight Range 16 Robot Scan Range 14 Terrain Scan Density 10 Evasion (%) 55 Item Schematics ----------------- None Robot Schematics ------------------ None Fabricated ------------ Nothing Alien Tech Used ----------------- None Achievements -------------- None Challenges ------------ None Game ------ Seed RefineryGuidedSaw Manual? 0 Play Time 00:23:01 Cumulative 14.0 hours Start 2024.10.12 @ 04:33:13 End 2024.10.12 @ 04:54:04 Sessions 1 Manual Loads 0 Difficulty Rogue Special Mode None Game No. 17 Rogue 17 Adventurer 0 Explorer 0 Win Type - Total 0 Types 0/0/0/0/0/0/0/0/0 Lore% 6 Gallery% 12 Achievement% 12 Wizard Run 0 Options --------- Layout 0 ASCII 0 Keyboard 1 Movement Arrows Keybinds 0 Fullscreen 1 Font 24/Smallcaps Map View 76x50 Zoom Use 0% Tactical HUD 1 Map Filters NONE Filters NONE Steam 1 RUN: 1a757e14-5b07-45a1-bede-231bda16b57f